bitfinex-derivatives/quotes_ETHF0:USTF0_20250621
["timestamp","ask_amount","ask_price","bid_price","bid_amount"]
[1750547418311,0.7002,2282.7,2282.4,5.97813053]
[1750547418519,53.6628,2283.0,2282.4,5.97813053]
[1750547418715,0.7053,2283.0,2282.6,3.87063053]
[1750547419021,0.7053,2283.0,2282.6,7.07843053]
[1750547421026,5.3109,2283.3,2282.6,7.07843053]
[1750547421324,7.07843053,2283.0,2282.2,3.2078]
[1750547421618,8.998,2282.9,2282.5,3.2078]
[1750547421820,1.435,2282.9,2282.5,3.2078]
[1750547422026,1.3391,2283.2,2282.8,3.2078]
[1750547422216,4.5812,2283.3,2282.9,3.87063053]
[1750547422527,3.9131,2283.3,2282.9,4.60203053]
[1750547422725,3.9131,2283.3,2282.9,5.98393053]
[1750547423923,0.7053,2283.3,2283.1,3.2078]
[1750547424324,7.543,2283.9,2283.1,7.07843053]
[1750547424513,7.543,2283.9,2283.0,7.543]
[1750547424514,0.7187,2283.8,2283.3,3.87063053]
[1750547424716,2.1584,2283.8,2283.3,3.87063053]
[1750547424923,2.1584,2283.8,2283.2,4.5897]
[1750547425530,2.1584,2283.8,2283.2,3.2078]
[1750547428325,3.87063053,2283.7,2283.2,3.2078]
[1750547428624,3.87063053,2283.5,2282.9,3.9392]
[1750547428827,9.6253,2283.4,2282.9,3.9392]
[1750547429219,0.7252,2283.3,2282.9,3.9392]
[1750547429419,1.4103,2283.2,2282.9,3.9392]
[1750547429616,0.7252,2283.3,2282.9,3.9392]
[1750547430021,0.7252,2283.3,2282.9,5.385]
[1750547430222,3.2078,2283.7,2283.2,7.07843053]
[1750547430729,3.2078,2283.7,2283.3,1.4458]
[1750547431234,0.7252,2284.0,2283.6,7.07843053]
[1750547431523,0.7252,2284.0,2283.7,0.7113]
[1750547435029,3.87063053,2283.9,2283.3,3.2078]
[1750547435331,8.44563053,2283.9,2283.3,3.2078]
[1750547435626,3.2078,2283.9,2283.4,3.87063053]
[1750547435819,0.7252,2284.0,2283.6,3.2078]
[1750547436018,0.7252,2284.0,2283.7,0.7284]
[1750547436529,9.5977,2284.3,2283.9,3.2078]
[1750547436829,10.7478,2284.5,2283.9,3.2078]
[1750547437223,12.2083,2284.5,2283.9,4.6268]
[1750547438833,16.07893053,2284.5,2283.9,4.6268]
[1750547439427,12.2083,2284.5,2283.9,4.6268]
[1750547439639,4.6683,2284.5,2284.0,3.87063053]
[1750547439930,7.54,2284.6,2284.0,3.87063053]
[1750547439931,7.54,2284.6,2284.2,7.07843053]
[1750547440235,3.8927,2284.8,2284.4,3.87063053]
[1750547440537,0.6849,2284.8,2284.5,4.5684]
[1750547441926,0.6849,2284.8,2284.5,3.2078]
[1750547442132,4.55553053,2284.8,2284.3,0.6827]
[1750547442327,3.2078,2284.5,2283.9,3.2078]
[1750547442533,1.3629,2284.4,2283.9,3.2078]
[1750547443036,0.7195,2284.3,2283.9,3.2078]
[1750547443332,0.7195,2284.3,2283.5,3.2078]
[1750547443333,16.75424824,2284.2,2283.5,3.2078]
[1750547443541,3.9174,2284.1,2283.5,3.2078]
[1750547443735,1.3474,2284.0,2283.5,3.2078]
[1750547444832,1.3474,2284.0,2283.6,1.3759]
[1750547445032,3.9174,2284.1,2283.6,1.3759]
[1750547445635,3.2078,2284.1,2283.6,1.3759]
[1750547445842,7.538,2284.2,2283.8,3.2078]
[1750547446239,8.8747,2284.2,2283.8,3.2078]
[1750547446645,1.4291,2284.3,2283.8,3.2078]
[1750547446839,0.7195,2284.3,2283.9,2.0836]
[1750547447943,0.7195,2284.3,2284.1,3.2078]
[1750547449743,7.538,2284.6,2284.1,3.2078]
[1750547449946,0.7177,2284.6,2284.4,3.2078]
[1750547450641,0.7177,2284.6,2284.1,3.2078]
[1750547450852,0.7177,2284.6,2284.2,7.538]
[1750547451259,0.7177,2284.6,2284.2,8.9448]
[1750547455358,0.7177,2284.6,2284.2,7.538]
[1750547456363,0.7177,2284.6,2284.2,8.9504]
[1750547456863,0.7177,2284.6,2284.4,3.2078]
[1750547457059,12.8289,2285.0,2284.4,3.2078]
[1750547457365,0.7106,2284.9,2284.4,3.2078]
[1750547457558,1.4138,2284.8,2284.4,3.2078]
[1750547457759,0.7106,2284.9,2284.4,3.2078]
[1750547457959,0.7106,2284.9,2284.5,0.6736]
[1750547458159,2.1817,2284.9,2284.5,0.6736]
[1750547458765,2.1817,2284.9,2284.4,3.2078]
[1750547459368,3.2078,2284.7,2284.0,10.7228]
[1750547459568,1.4711,2284.6,2284.0,10.7228]
[1750547461269,1.4711,2284.6,2284.0,3.2078]
[1750547462371,1.39516126,2284.5,2284.0,3.2078]
[1750547462569,2.1892,2284.4,2284.0,3.2078]
[1750547462772,7.515,2284.3,2283.6,3.2078]
[1750547462968,1.4577,2284.2,2283.7,0.7379]
[1750547465578,1.4577,2284.2,2283.6,3.2078]
[1750547465876,1.4577,2284.2,2283.5,0.6788]
[1750547466062,1.4577,2284.2,2283.6,3.2078]
[1750547467771,1.4529,2284.4,2283.9,3.2078]
[1750547468071,0.7214,2284.4,2284.2,3.2078]
[1750547469780,10.7238,2284.7,2284.2,3.2078]
[1750547469970,10.7238,2284.7,2284.3,1.3775]
[1750547470171,12.1685,2284.7,2284.3,1.3775]
[1750547470971,12.1685,2284.7,2284.1,0.7079]
[1750547471172,12.1685,2284.7,2284.1,2.1172]
[1750547472680,12.1685,2284.7,2284.2,3.2078]
[1750547473573,12.1685,2284.7,2283.9,10.7238]
[1750547473969,12.1685,2284.7,2283.7,0.6911]
[1750547473970,3.2078,2284.4,2283.7,0.6911]
[1750547474174,9.6787,2284.3,2283.7,0.6911]
[1750547474576,0.7012,2284.2,2283.7,0.6911]
[1750547474777,1.4575,2284.1,2283.7,0.6911]
[1750547476283,1.4575,2284.1,2283.7,3.8989]
[1750547476676,0.7012,2284.2,2283.7,3.8989]
[1750547476990,2.1565,2284.2,2283.7,3.8989]
[1750547477381,2.1565,2284.2,2283.8,1.4265]
[1750547479383,2.1565,2284.2,2283.7,3.8989]
[1750547479687,2.1565,2284.2,2283.7,0.6911]
[1750547479885,2.1565,2284.2,2283.7,3.8989]
[1750547482388,3.2078,2284.1,2283.4,53.6368]
[1750547482586,8.8696,2284.0,2283.4,3.9009]
[1750547484183,1.3536,2284.0,2283.4,3.9009]
[1750547484389,8.2172,2284.2,2283.7,3.2078]
[1750547484582,0.7052,2284.3,2283.7,3.2078]
[1750547484786,0.7052,2284.3,2284.1,3.2078]
[1750547485883,0.7052,2284.3,2283.9,0.6931]
[1750547486284,0.7052,2284.3,2283.9,2.1289]
[1750547486684,0.7052,2284.3,2283.9,0.6931]
[1750547486888,1.4052,2284.2,2283.8,3.2078]
[1750547487289,1.4052,2284.2,2283.6,0.7249]
[1750547487592,10.7008,2284.1,2283.6,0.7249]
[1750547487789,9.94225504,2284.0,2283.2,3.2078]
[1750547488391,3.2078,2283.8,2283.2,3.2078]
[1750547488590,8.9444,2283.7,2283.0,0.7249]
[1750547488791,9.6567,2283.7,2283.0,0.7249]
[1750547489894,9.6567,2283.7,2283.1,1.4385]
[1750547490594,8.2053,2283.7,2283.1,1.4385]
[1750547490794,8.2053,2283.7,2283.0,0.7249]
[1750547490993,1.4514,2283.6,2283.0,0.7249]
[1750547491998,1.4514,2283.6,2283.0,2.1287]
[1750547492197,1.4514,2283.6,2283.0,2.6793]
[1750547492396,1.4514,2283.6,2283.0,10.1733]
[1750547493295,0.7123,2283.7,2283.0,10.1733]
[1750547493494,8.2063,2283.7,2283.2,3.2078]
[1750547493697,8.2063,2283.7,2283.5,3.2078]
[1750547494090,0.7123,2283.7,2283.5,3.2078]
[1750547495097,0.6702,2284.0,2283.6,0.6872]
[1750547495295,0.7256,2283.9,2283.6,0.6872]
[1750547496295,0.7256,2283.9,2283.6,2.0439]
[1750547497693,0.7082,2284.3,2283.8,3.2078]
[1750547497896,1.4229,2284.3,2283.8,3.2078]
[1750547498096,0.7147,2284.3,2283.8,3.2078]
[1750547498299,1.3617,2284.2,2283.8,3.2078]
[1750547498802,4.613,2284.3,2283.6,8.1812]
[1750547498803,0.7147,2284.3,2284.1,3.2078]
[1750547500207,0.7147,2284.3,2284.2,0.7267]
[1750547500708,10.7018,2284.9,2284.2,0.7267]
[1750547500907,0.6724,2284.8,2284.4,3.2078]
[1750547501205,1.3917,2284.7,2284.2,2.0899]
[1750547501501,1.3917,2284.7,2284.4,3.2078]
[1750547503100,0.6724,2284.8,2284.4,3.2078]
[1750547503505,2.0641,2284.8,2284.4,3.2078]
[1750547503802,0.6724,2284.8,2284.4,3.2078]
[1750547503997,0.6724,2284.8,2284.5,1.4089]
[1750547504603,0.6724,2284.8,2284.7,3.2078]
[1750547505404,3.8925,2285.2,2284.7,3.2078]
[1750547505714,0.6929,2285.1,2284.7,3.2078]
[1750547506003,2.0734,2285.1,2284.7,3.2078]
[1750547506409,2.0734,2285.1,2284.5,8.9019]
[1750547509101,2.0734,2285.1,2284.5,7.493]
[1750547509708,2.0734,2285.1,2284.4,10.6998]
[1750547510106,7.492,2285.0,2284.4,10.6998]
[1750547510411,3.2078,2284.8,2284.2,0.7267]
[1750547510600,2.1555,2284.7,2284.2,0.7267]
[1750547510914,9.6475,2284.7,2284.2,0.7267]
[1750547511101,0.7305,2284.6,2284.2,0.7267]
[1750547511302,1.4292,2284.5,2284.2,0.7267]
[1750547517007,0.7305,2284.6,2284.2,0.7267]
[1750547517506,0.7305,2284.6,2284.2,2.1437]
[1750547518909,0.7305,2284.6,2284.4,3.2078]
[1750547519114,17.69285504,2285.4,2284.4,3.2078]
[1750547519115,0.7163,2285.0,2284.4,3.2078]
[1750547519511,2.0909,2285.0,2284.4,3.2078]
[1750547520113,2.0909,2285.0,2284.5,1.476]
[1750547520915,10.6748,2285.1,2284.7,3.2078]
[1750547521122,8.166,2285.3,2285.0,3.2078]
[1750547521815,0.699,2285.3,2285.0,3.2078]
[1750547522512,3.2078,2286.0,2285.1,7.467]
[1750547522722,2.7734,2285.9,2285.3,3.2078]
[1750547523509,3.2078,2285.7,2284.8,0.7267]
[1750547523713,3.2078,2285.4,2284.8,0.7267]
[1750547524011,2.7734,2285.3,2284.8,0.7267]
[1750547524319,0.7073,2285.3,2285.0,3.2078]
[1750547526522,8.1723,2285.3,2284.7,3.2078]
[1750547526716,3.2078,2285.1,2284.6,7.467]
[1750547527022,1.4719,2285.0,2284.5,0.7287]
[1750547527515,1.4719,2285.0,2284.3,7.465]
[1750547527718,3.2078,2284.8,2284.2,0.7287]
[1750547527918,2.1485,2284.7,2284.2,0.7287]
[1750547528119,2.8592,2284.7,2284.2,0.7287]
[1750547528618,7.465,2284.6,2284.2,0.7287]
[1750547528823,1.4021,2284.5,2284.2,0.7287]
[1750547529325,7.465,2284.6,2284.2,0.7287]
[1750547529622,7.465,2284.6,2284.2,2.2059]
[1750547529924,8.8671,2284.6,2284.2,0.7287]
[1750547533226,8.8671,2284.6,2283.9,1.4772]
[1750547533427,8.8671,2284.6,2283.9,2.2028]
[1750547535221,8.8671,2284.6,2284.1,3.2078]
[1750547535516,8.8671,2284.6,2283.9,2.2028]
[1750547535716,3.2078,2284.5,2283.9,0.7256]
[1750547535923,1.3823,2284.4,2283.9,0.7256]
[1750547536122,7.466,2284.3,2283.9,0.7256]
[1750547536428,1.3823,2284.2,2283.9,0.7256]
[1750547536632,2.056,2284.2,2283.9,0.7256]
[1750547536829,5.2638,2284.2,2283.5,3.2078]
[1750547537031,0.7228,2284.1,2283.5,0.7005]
[1750547537226,3.2078,2283.8,2283.2,3.2078]
[1750547537426,2.0838,2283.7,2283.2,3.2078]
[1750547537626,2.0838,2283.7,2283.2,5.3764]
[1750547537925,3.2078,2283.8,2283.2,5.3764]
[1750547538227,0.7218,2284.0,2283.6,3.2078]
[1750547538433,0.7218,2284.0,2283.7,0.727]
[1750547538835,0.7218,2284.0,2283.7,2.1686]
[1750547541130,3.2078,2284.4,2283.9,3.2078]
[1750547541326,3.9049,2284.4,2283.8,1.4531]
[1750547541533,9.25735504,2284.3,2283.4,7.467]
[1750547541734,7.467,2284.2,2283.4,7.467]
[1750547541934,5.2778,2284.1,2283.3,3.2078]
[1750547542329,5.2778,2284.1,2283.4,1.4531]
[1750547542530,7.467,2284.0,2283.4,1.4531]
[1750547542730,8.8575,2284.0,2283.4,1.4531]
[1750547542939,0.6971,2283.9,2283.4,1.4531]
[1750547545338,1.3631,2283.8,2283.4,1.4531]
[1750547545639,1.3631,2283.8,2283.3,3.2078]
[1750547546330,1.3631,2283.8,2283.3,4.5928]
[1750547547241,0.6971,2283.9,2283.3,4.5928]
[1750547547545,3.2078,2284.1,2283.6,3.2078]
[1750547547731,3.2078,2284.1,2283.7,0.7259]
[1750547548040,3.2078,2284.1,2283.7,2.1406]
[1750547548241,3.2078,2284.1,2283.7,2.6915]
[1750547548444,3.2078,2284.1,2283.8,1.4147]
[1750547548740,2.866,2284.4,2283.8,1.4147]
[1750547550140,0.728,2284.4,2283.9,3.2078]
[1750547550344,0.728,2284.4,2284.0,1.3947]
[1750547551239,0.728,2284.4,2283.9,10.6538]
[1750547551636,1.452,2284.3,2283.9,7.446]
[1750547551834,0.728,2284.4,2284.0,3.2078]
[1750547552143,3.2078,2284.9,2284.3,3.2078]
[1750547552347,3.2078,2284.9,2284.3,10.6538]
[1750547552536,3.2078,2284.9,2284.4,2.108]
[1750547552848,0.7017,2284.8,2284.4,2.108]
[1750547553347,0.7017,2284.8,2284.4,0.7094]
[1750547553544,0.7017,2284.8,2284.6,3.2078]
[1750547553742,3.2078,2285.2,2284.6,10.6528]
[1750547553933,3.2078,2285.2,2284.7,1.3986]
[1750547554138,1.3985,2285.1,2284.6,10.6528]
[1750547554740,1.3985,2285.1,2284.7,1.3986]
[1750547555349,3.2078,2285.2,2284.7,1.3986]
[1750547555948,0.7017,2285.3,2284.9,3.2078]
[1750547556148,12.0513,2285.5,2285.0,0.7035]
[1750547556337,3.2078,2285.5,2285.0,2.0768]
[1750547556651,3.2078,2286.1,2285.2,11.07465504]
[1750547556841,3.2078,2286.1,2285.5,3.2078]
[1750547557346,1.4734,2286.0,2285.5,3.2078]
[1750547557946,3.2078,2286.1,2285.6,0.7035]
[1750547558144,1.4082,2286.2,2285.8,3.2078]
[1750547558340,2.8816,2286.2,2285.8,3.2078]
[1750547558846,0.7236,2286.2,2285.8,3.2078]
[1750547559043,3.2078,2286.5,2285.9,1.4542]
[1750547559249,3.2078,2286.5,2286.1,3.2078]
[1750547559446,0.684,2286.7,2286.2,9.6011]
[1750547559648,0.684,2286.7,2286.3,1.4542]
[1750547559851,0.684,2286.7,2286.4,3.2078]
[1750547560045,3.2078,2286.8,2286.4,3.2078]
[1750547560242,3.2078,2286.8,2286.5,1.4542]
[1750547560550,3.2078,2286.8,2286.5,8.8972]
[1750547561449,2.7612,2287.2,2286.7,3.2078]
[1750547562242,3.2078,2287.0,2286.4,3.2078]
[1750547562442,1.4057,2286.9,2286.2,8.1459]
[1750547563247,3.2078,2286.7,2286.2,8.1459]
[1750547563450,2.0786,2286.6,2286.2,8.1459]
[1750547563753,2.7938,2286.6,2286.2,8.1459]
[1750547563954,3.2078,2287.0,2286.4,3.2078]
[1750547564146,6.0016,2287.0,2286.4,3.2078]
[1750547564949,6.0016,2287.0,2286.2,8.1459]
[1750547565355,6.0016,2287.0,2286.4,3.2078]
[1750547565851,6.0016,2287.0,2286.2,9.5475]
[1750547566257,6.0016,2287.0,2286.4,3.2078]
[1750547567459,6.0016,2287.0,2286.2,9.5475]
[1750547567660,6.0016,2287.0,2286.2,0.7029]
[1750547567960,3.2078,2286.5,2285.8,3.2078]
[1750547568258,1.4484,2286.4,2285.9,2.0639]
[1750547568768,3.2078,2286.5,2285.9,2.0639]
[1750547569067,3.2078,2286.5,2286.0,7.86685504]
[1750547569254,3.2078,2286.5,2286.1,8.773]
[1750547569559,1.3881,2287.0,2286.4,3.2078]
[1750547569765,1.4484,2286.9,2286.5,0.7299]
[1750547569962,1.4484,2286.9,2286.7,3.2078]
[1750547570266,1.4484,2286.9,2286.5,0.7299]
[1750547571164,1.4484,2286.9,2286.4,10.6468]
[1750547571765,1.4484,2286.9,2286.4,7.439]
[1750547572058,8.8874,2286.9,2286.2,0.6938]
[1750547572266,16.75425504,2286.9,2286.2,0.6938]
[1750547572867,3.2078,2286.8,2286.2,0.6938]
[1750547573067,1.363,2286.7,2286.2,0.6938]
[1750547573767,1.363,2286.7,2286.1,7.439]
[1750547574466,1.363,2286.7,2286.1,3.2078]
[1750547574964,7.86685504,2286.4,2285.8,3.9122]
[1750547575168,3.2078,2286.2,2285.5,3.2078]
[1750547575355,1.413,2286.1,2285.5,3.2078]
[1750547575560,8.852,2286.1,2285.5,3.2078]
[1750547576161,3.2078,2285.9,2285.5,3.2078]
[1750547576463,7.439,2286.1,2285.5,3.2078]
[1750547576867,1.413,2286.0,2285.5,3.2078]
[1750547577364,1.413,2286.0,2285.6,1.4032]
[1750547578161,1.413,2286.0,2285.5,3.2078]
[1750547579765,1.413,2286.0,2285.6,1.4032]
[1750547580368,1.413,2286.0,2285.5,3.2078]
[1750547580571,10.6468,2286.2,2285.5,3.2078]
[1750547580757,10.6468,2286.2,2285.6,1.3697]
[1750547580960,1.4427,2286.1,2285.6,1.3697]
[1750547581672,1.4427,2286.1,2285.8,3.2078]
[1750547582265,1.4427,2286.1,2285.6,1.3697]
[1750547582571,1.4427,2286.1,2285.7,3.2078]
[1750547586771,1.4427,2286.1,2285.6,1.3697]
[1750547588879,1.4427,2286.1,2285.7,3.2078]
[1750547589082,3.2078,2286.2,2285.7,18.49865504]
[1750547589281,3.2078,2286.2,2285.8,1.3794]
[1750547589478,3.2078,2286.2,2285.7,3.2078]
[1750547589778,0.6706,2286.3,2285.5,0.6852]
[1750547589779,3.2078,2285.9,2285.5,0.6852]
[1750547590572,9.6151,2286.1,2285.5,0.6852]
[1750547590877,9.6151,2286.1,2285.7,3.2078]
[1750547591275,2.1911,2286.1,2285.7,3.2078]
[1750547591479,1.4612,2286.1,2285.7,3.2078]
[1750547592180,8.0946,2286.3,2285.7,3.2078]
[1750547592575,8.0946,2286.3,2285.7,4.6666]
[1750547592774,1.38981261,2286.2,2285.7,4.6666]
[1750547592972,1.3544,2286.2,2285.7,3.2078]
[1750547593278,1.3544,2286.2,2285.5,8.55205504]
[1750547593279,1.38977299,2286.1,2285.5,0.6852]
[1750547593478,3.2078,2285.9,2285.5,0.6852]
[1750547593680,1.3544,2285.8,2285.5,0.6852]
[1750547594777,1.3544,2285.8,2285.4,10.6318]
[1750547594968,0.6974,2285.7,2285.4,10.6318]
[1750547597384,8.1214,2285.7,2285.2,0.7057]
[1750547597582,1.3714,2285.6,2285.2,0.7057]
[1750547597774,3.8763,2285.5,2285.1,3.2078]
[1750547597977,8.7954,2285.4,2284.8,0.6861]
[1750547598280,3.2078,2285.2,2284.8,0.6861]
[1750547598468,1.3671,2285.1,2284.6,3.2078]
[1750547598671,3.2078,2284.9,2284.4,0.714]
[1750547598876,2.0967,2284.8,2284.4,0.714]
[1750547599175,9.5207,2284.8,2284.2,7.424]
[1750547600576,9.5207,2284.8,2283.7,3.2078]
[1750547600577,3.2078,2284.6,2283.7,3.2078]
[1750547600774,9.5087,2284.5,2283.8,0.714]
[1750547600971,9.5087,2284.5,2283.8,2.0654]
[1750547601374,9.5087,2284.5,2283.8,5.2732]
[1750547602477,0.7176,2284.5,2284.1,3.2078]
[1750547602875,0.7176,2284.5,2283.8,3.9218]
[1750547603179,3.2078,2284.3,2283.8,3.9218]
[1750547603380,2.0592,2284.2,2283.8,3.9218]
[1750547603876,2.0592,2284.2,2283.8,3.2078]
[1750547604184,3.2078,2284.0,2283.4,0.6898]
[1750547604482,8.8197,2283.9,2283.4,0.6898]
[1750547604683,9.5419,2283.9,2283.4,0.6898]
[1750547605676,3.2078,2284.6,2283.8,7.86685504]
[1750547605879,3.2078,2284.4,2283.8,3.2078]
[1750547606072,1.3937,2284.5,2283.8,3.2078]
[1750547606277,1.3937,2284.5,2283.8,4.6827]
[1750547608185,4.6015,2284.5,2283.8,4.6827]
[1750547609082,4.6015,2284.5,2283.8,3.2078]
[1750547609288,3.2078,2284.0,2283.2,3.2078]
[1750547609484,10.1989,2283.9,2283.2,3.2078]
[1750547610685,3.2078,2283.7,2283.2,3.2078]
[1750547610886,1.4405,2283.6,2283.2,3.2078]
[1750547616693,10.6228,2283.7,2283.2,3.2078]
[1750547617391,1.4317,2283.6,2283.2,3.2078]
[1750547619594,3.2078,2283.4,2282.9,3.2078]
[1750547619789,9.572,2283.3,2282.9,3.2078]
[1750547619991,3.2078,2283.1,2282.6,3.2078]
[1750547620190,1.4311,2283.0,2282.6,3.2078]
[1750547620390,8.8481,2283.0,2282.6,3.2078]
[1750547620593,8.8481,2283.0,2282.5,0.7412]
[1750547620594,3.2078,2282.8,2282.3,3.2078]
[1750547620796,9.5434,2282.7,2282.3,3.2078]
[1750547622992,10.2351,2282.7,2282.3,3.2078]
[1750547624598,10.2351,2282.7,2282.0,13.60249273]
[1750547624993,3.2078,2282.5,2282.0,3.949]
[1750547625196,8.7805,2282.4,2282.0,3.949]
[1750547625490,3.2078,2282.2,2281.7,3.2078]
[1750547625696,1.3625,2282.1,2281.7,3.2078]
[1750547625994,0.6762,2282.1,2281.7,3.2078]
[1750547626298,8.0952,2282.1,2281.7,3.2078]
[1750547627387,0.6762,2282.1,2281.7,3.2078]
[1750547627588,7.419,2282.4,2282.0,11.07465504]
[1750547627787,3.884,2282.5,2282.1,2.1955]
[1750547628396,0.6762,2282.5,2282.1,2.1955]
[1750547629203,8.1107,2282.7,2282.1,2.1955]
[1750547629204,0.6917,2282.7,2282.1,2.1955]
[1750547629501,8.1117,2282.7,2282.1,2.7475]
[1750547630000,9.5691,2282.7,2282.1,2.7475]
[1750547630201,2.1491,2282.7,2282.1,2.7475]
[1750547630395,9.5691,2282.7,2282.1,2.7475]
[1750547630812,9.5691,2282.7,2282.3,3.2078]
[1750547631501,3.2078,2282.5,2281.7,11.07465504]
[1750547631701,3.2078,2282.5,2282.0,0.6868]
[1750547632201,3.2078,2282.5,2282.0,8.55365504]
[1750547632500,3.2078,2282.5,2282.1,1.4692]
[1750547632693,3.2078,2282.5,2282.1,2.0211]
[1750547632999,3.2078,2282.5,2282.1,5.2289]
[1750547633803,0.6902,2282.6,2282.1,3.2078]
[1750547633995,3.2078,2282.4,2282.1,3.2078]
[1750547634504,7.42,2282.4,2282.0,3.8946]
[1750547634698,7.42,2282.4,2282.0,5.3638]
[1750547635399,8.29603,2282.4,2282.0,5.3638]
[1750547636403,0.87604,2282.3,2282.0,3.8946]
[1750547636600,8.29602,2282.4,2282.0,3.8946]
[1750547636801,11.50382,2282.4,2282.0,3.8946]
[1750547636998,10.6278,2282.4,2282.0,3.8946]
[1750547637498,11.5038,2282.4,2282.0,3.8946]
[1750547637998,10.6278,2282.4,2282.0,3.8946]
[1750547638202,11.5038,2282.4,2282.0,3.8946]
[1750547638596,0.87604,2282.3,2282.0,3.8946]
[1750547638790,10.6278,2282.4,2282.0,3.8946]
[1750547638997,11.50383,2282.4,2282.0,3.8946]
[1750547639403,10.6278,2282.4,2282.0,3.8946]
[1750547639598,1.4088,2282.3,2282.0,3.2078]
[1750547639904,3.2078,2282.1,2281.7,3.2078]
[1750547640100,2.95768,2282.0,2281.7,3.2078]
[1750547640300,0.87622,2281.9,2281.7,3.2078]
[1750547640596,2.95767,2282.0,2281.7,3.2078]
[1750547640803,0.87623,2281.8,2281.5,0.7277]
[1750547640998,2.7649,2282.0,2281.5,0.7277]
[1750547641199,3.64108,2282.0,2281.5,0.7277]
[1750547641398,0.87619,2281.9,2281.5,0.7277]
[1750547641605,1.4417,2281.9,2281.5,0.7277]
[1750547641806,2.31792,2281.9,2281.5,0.7277]
[1750547642104,1.4417,2281.9,2281.4,3.2078]
[1750547642305,1.4417,2281.9,2281.0,3.9256]
[1750547642306,3.2078,2281.5,2281.0,3.9256]
[1750547642509,3.2078,2281.1,2280.6,1.3899]
[1750547642699,3.2078,2280.7,2279.9,3.2078]
[1750547642900,3.2078,2280.4,2279.9,3.2078]
[1750547643106,8.8527,2280.3,2279.9,3.2078]
[1750547643414,3.2078,2280.1,2279.4,3.2078]
[1750547643607,3.2078,2280.1,2279.4,12.46455504]
[1750547643801,3.2078,2280.1,2279.7,3.2078]
[1750547644111,10.6208,2280.1,2279.7,3.2078]
[1750547644305,3.2078,2280.1,2279.7,3.2078]
[1750547644498,3.2078,2280.4,2279.8,1.3528]
[1750547644806,2.57114753,2281.1,2280.3,7.86685504]
[1750547644807,4.08432,2281.1,2280.3,7.86685504]
[1750547645006,0.7071,2281.0,2280.5,3.2078]
[1750547645204,2.177,2281.0,2280.5,3.2078]
[1750547646009,3.05355,2281.0,2280.5,3.2078]
[1750547646310,2.177,2281.0,2280.5,3.2078]
[1750547646705,0.7071,2281.0,2280.5,3.2078]
[1750547647009,0.8764,2281.4,2280.0,0.5519]
[1750547647010,3.2078,2281.4,2280.8,3.2078]
[1750547647213,10.6218,2281.4,2280.8,3.2078]
[1750547647414,10.6218,2281.4,2280.9,1.422]
[1750547647712,0.7187,2281.5,2281.1,3.2078]
[1750547647910,0.7187,2281.5,2280.9,9.28885504]
[1750547647911,7.414,2282.3,2281.4,3.2078]
[1750547648102,0.87616,2282.0,2281.7,3.2078]
[1750547648305,0.87613,2282.1,2281.5,1.422]
[1750547648507,1.451,2282.1,2281.8,3.2078]
[1750547648812,0.7187,2282.2,2281.8,3.2078]
[1750547650113,1.59478,2282.2,2281.8,3.2078]
[1750547650313,0.7187,2282.2,2281.8,3.2078]
[1750547651208,10.6218,2282.4,2281.8,3.2078]
[1750547651609,1.4242,2282.3,2281.8,3.2078]
[1750547651914,1.4242,2282.3,2282.1,3.2078]
[1750547652211,0.721,2282.5,2281.8,3.2078]
[1750547652411,3.02118,2282.5,2281.9,1.4073]
[1750547652715,2.1452,2282.5,2281.8,10.6208]
[1750547652912,3.02118,2282.5,2281.8,10.6208]
[1750547653118,2.1452,2282.5,2281.8,3.2078]
[1750547653320,0.87604,2282.3,2281.8,3.2078]
[1750547653518,1.345,2282.2,2281.8,3.2078]
[1750547654214,0.87613,2282.1,2281.8,3.2078]
[1750547654409,0.87613,2282.1,2281.5,7.413]
[1750547654410,19.83265504,2282.0,2281.5,3.2078]
[1750547654616,19.83265504,2282.0,2281.0,3.2078]
[1750547654617,3.2078,2281.6,2281.0,3.2078]
[1750547654811,1.345,2281.5,2281.0,3.2078]
[1750547655215,2.22136,2281.5,2281.0,3.2078]
[1750547655411,1.345,2281.5,2281.0,3.2078]
[1750547655618,2.22138,2281.5,2281.0,3.2078]
[1750547655918,0.87639,2281.4,2281.0,3.2078]
[1750547656120,1.345,2281.5,2281.0,3.2078]
[1750547656121,1.4042,2281.3,2281.0,3.2078]
[1750547657320,1.4042,2281.3,2280.7,11.3235]
[1750547658422,1.4042,2281.3,2281.0,3.2078]
[1750547658920,8.8182,2281.3,2280.7,3.9095]
[1750547659216,8.8182,2281.3,2281.0,3.2078]
[1750547659524,0.87648,2281.2,2280.7,3.9095]
[1750547659713,1.3705,2281.1,2280.7,3.9095]
[1750547660324,10.6218,2281.0,2280.4,3.2078]
[1750547660622,2.2471,2280.9,2280.4,3.2078]
[1750547661423,0.87662,2280.8,2280.1,12.0889]
[1750547661615,1.3705,2280.7,2280.1,12.0889]
[1750547661813,1.3705,2280.7,2280.1,3.2078]
[1750547662025,1.61521,2280.6,2280.1,3.2078]
[1750547662210,0.7385,2280.6,2280.1,3.2078]
[1750547662820,1.4032,2280.5,2280.1,3.2078]
[1750547663017,0.87678,2280.4,2279.8,4.652]
[1750547663216,1.4032,2280.3,2279.8,4.652]
[1750547663410,0.87686,2280.2,2279.5,3.55618927]